fUSD/lending_fUSD_20250403
["ID","MTS","AMOUNT","RATE_DAILY","PERIOD"]
[357084849,1743702779671,-500.0,0.00050684,120]
[357084850,1743702779698,-2855.85,0.00050684,120]
[357084851,1743702779725,-1917.44,0.00050684,120]
[357084852,1743702779753,-500.0,0.00050684,120]
[357084853,1743702779779,-976.29,0.00050684,120]
[357084854,1743702779807,-505.64,0.00050684,120]
[357084855,1743702779834,-1398.35,0.00050684,120]
[357084856,1743702779862,-1868.38,0.00050684,120]
[357084857,1743702779891,-500.0,0.00050684,120]
[357084858,1743702779922,-1848.74,0.00050684,120]
[357084859,1743702779950,-500.0,0.00050684,120]
[357084860,1743702779979,-1939.65,0.00050684,120]
[357084861,1743702780008,-500.0,0.00050684,120]
[357084862,1743702780038,-500.0,0.00050684,120]
[357084863,1743702780067,-527.11,0.00050684,120]
[357084864,1743702780096,-2473.74,0.00050684,120]
[357084865,1743702780125,-2090.69,0.00050684,120]
[357084866,1743702780153,-597.25,0.00050684,120]
[357084867,1743702780181,-1838.99,0.00050684,120]
[357084868,1743702780209,-2110.49,0.00050684,120]
[357084869,1743702780240,-2100.66,0.00050684,120]
[357084870,1743702780271,-778.23,0.00050684,120]
[357084871,1743702780300,-749.23,0.00050684,120]
[357084872,1743702780330,-500.0,0.00050684,120]
[357084873,1743702780359,-1588.68,0.00050684,120]
[357084874,1743702780389,-311.53340971,0.00050684,120]
[357084875,1743702780420,-500.0,0.00050684,120]
[357084876,1743702780450,-1992.38,0.00050684,120]
[357084877,1743702780481,-574.96,0.00050684,120]
[357084878,1743702780512,-500.0,0.00050684,120]
[357084879,1743702780541,-795.48,0.00050684,120]
[357084880,1743702780570,-500.0,0.00050684,120]
[357084881,1743702780600,-1760.21,0.00050684,120]
[357084882,1743702780629,-325.00903647,0.00050684,120]
[357084883,1743702780658,-500.0,0.00050684,120]
[357084884,1743702780688,-500.0,0.00050684,120]
[357084885,1743702780716,-2980.91,0.00050684,120]
[357084886,1743702780746,-1579.38,0.00050684,120]
[357084887,1743702780773,-1116.73,0.00050684,120]
[357084888,1743702780801,-1693.21,0.00050684,120]
[357084889,1743702780828,-500.0,0.00050684,120]
[357084890,1743702780856,-500.0,0.00050684,120]
[357084891,1743702781057,-1211.63,0.00050684,120]
[357084892,1743702781087,-1853.76,0.00050684,120]
[357084893,1743702781116,-1747.91,0.00050684,120]
[357084894,1743702781144,-1699.65,0.00050684,120]
[357084895,1743702781173,-500.0,0.00050684,120]
[357084896,1743702781200,-1666.14,0.00050684,120]
[357084897,1743702781229,-919.01,0.00050684,120]
[357084898,1743702781256,-1084.23,0.00050684,120]
[357084899,1743702781284,-193.05164574,0.00050684,120]
[357084900,1743702781312,-1746.34,0.00050684,120]
[357084901,1743702781340,-2182.37,0.00050684,120]
[357084902,1743702781368,-1996.93,0.00050684,120]
[357084903,1743702781396,-616.61,0.00050684,120]
[357084904,1743702781425,-154.21,0.00050881,120]
[357084905,1743702781454,-19980.53085834,0.000509,120]
[357084906,1743702781483,-1570.339496,0.00050958,120]
[357084907,1743702781512,-1746.393489,0.00050958,120]
[357084908,1743702781540,-668.08,0.00050958,120]
[357084909,1743702781567,-500.0,0.00050958,120]
[357084910,1743702781594,-500.0,0.00050958,120]
[357084911,1743702781622,-500.0,0.00050958,120]
[357084912,1743702781649,-500.0,0.00050958,120]
[357084913,1743702781677,-602.89,0.00050958,120]
[357084914,1743702781705,-500.0,0.00050958,120]
[357084915,1743702781732,-500.0,0.00050958,120]
[357084916,1743702781761,-500.0,0.00050958,120]
[357084917,1743702781789,-985.24,0.00050958,120]
[357084918,1743702781816,-500.0,0.00050958,120]
[357084919,1743702781843,-1580.79,0.00050958,120]
[357084920,1743702781871,-1670.9,0.00050958,120]
[357084921,1743702781918,-2179.85,0.00050958,120]
[357084922,1743702781948,-500.0,0.00050958,120]
[357084923,1743702781978,-1833.35,0.00050958,120]
[357084924,1743702782008,-1059.43,0.00050958,120]
[357084925,1743702782038,-500.0,0.00050958,120]
[357084926,1743702782067,-500.0,0.00050958,120]
[357084927,1743702782097,-615.12,0.00050958,120]
[357084928,1743702782126,-290.42902303,0.00050958,120]
[357084929,1743702782154,-2116.98,0.00050958,120]
[357084930,1743702782182,-1664.7,0.00050958,120]
[357084931,1743702782211,-2371.69,0.00050958,120]
[357084932,1743702782240,-1951.25,0.00050958,120]
[357084933,1743702782267,-2172.01,0.00050958,120]
[357084934,1743702782296,-1677.78,0.00050958,120]
[357084935,1743702782324,-1206.58,0.00050958,120]
[357084936,1743702782352,-2569.15,0.00050958,120]
[357084937,1743702782380,-2095.81,0.00050958,120]
[357084938,1743702782408,-2095.76,0.00050958,120]
[357084939,1743702782436,-1739.7,0.00050958,120]
[357084940,1743702782464,-1687.07,0.00050958,120]
[357084941,1743702782493,-2265.06,0.00050958,120]
[357084942,1743702782521,-1685.91,0.00050958,120]
[357084943,1743702782549,-500.0,0.00050958,120]
[357084944,1743702782581,-500.0,0.00050958,120]
[357084945,1743702782611,-1903.06,0.00050958,120]
[357084946,1743702782640,-2009.82,0.00050958,120]
[357084947,1743702782667,-500.0,0.00050958,120]
[357084948,1743702782694,-2140.52,0.00050958,120]
[357084949,1743702782721,-771.9,0.00050958,120]
[357084950,1743702782749,-150.0,0.00050958,120]
[357084951,1743702782776,-1568.95,0.00050958,120]
[357084952,1743702782804,-500.0,0.00050958,120]
[357084953,1743702782831,-500.0,0.00050958,120]
[357084954,1743702782860,-998.19,0.00050958,120]
[357084955,1743702782887,-1519.77,0.00050958,120]
[357084956,1743702782919,-1817.99,0.00050958,120]
[357084957,1743702782945,-1674.65,0.00050958,120]
[357084958,1743702782973,-1554.9,0.00050958,120]
[357084959,1743702783003,-500.0,0.00050958,120]
[357084960,1743702783031,-1415.89,0.00050958,120]
[357084961,1743702783059,-500.0,0.00050958,120]
[357084962,1743702783087,-1535.52,0.00050958,120]
[357084963,1743702783114,-854.16,0.00050958,120]
[357084964,1743702783142,-2083.3,0.00050958,120]
[357084965,1743702783169,-1807.91,0.00050958,120]
[357084966,1743702783197,-500.0,0.00050958,120]
[357084967,1743702783225,-2155.15,0.00050958,120]
[357084968,1743702783257,-2101.8,0.00050958,120]
[357084969,1743702783289,-1912.76,0.00050958,120]
[357084970,1743702783321,-731.1,0.00050958,120]
[357084971,1743702783355,-500.0,0.00050958,120]
[357084972,1743702783383,-2855.85,0.00050958,120]
[357084973,1743702783411,-1917.44,0.00050958,120]
[357084974,1743702783439,-500.0,0.00050958,120]
[357084975,1743702783472,-976.29,0.00050958,120]
[357084976,1743702783501,-505.64,0.00050958,120]
[357084977,1743702783531,-1398.35,0.00050958,120]
[357084978,1743702783562,-1868.38,0.00050958,120]
[357084979,1743702783590,-500.0,0.00050958,120]
[357084980,1743702783620,-1848.74,0.00050958,120]
[357084981,1743702783650,-500.0,0.00050958,120]
[357084982,1743702783679,-1939.65,0.00050958,120]
[357084983,1743702783707,-500.0,0.00050958,120]
[357084984,1743702783739,-500.0,0.00050958,120]
[357084985,1743702783769,-527.11,0.00050958,120]
[357084986,1743702783800,-2473.74,0.00050958,120]
[357084987,1743702783830,-2090.69,0.00050958,120]
[357084988,1743702783860,-597.25,0.00050958,120]
[357084989,1743702783889,-1838.99,0.00050958,120]
[357084990,1743702783923,-2110.49,0.00050958,120]
[357084991,1743702783953,-2100.66,0.00050958,120]
[357084992,1743702783986,-778.23,0.00050958,120]
[357084993,1743702784015,-749.23,0.00050958,120]
[357084994,1743702784045,-500.0,0.00050958,120]
[357084995,1743702784350,-1588.68,0.00050958,120]
[357084996,1743702784383,-500.0,0.00050958,120]
[357084997,1743702784427,-574.96,0.00050958,120]
[357084998,1743702784467,-1992.38,0.00050958,120]
[357084999,1743702784503,-500.0,0.00050958,120]
[357085000,1743702784536,-795.48,0.00050958,120]
[357085001,1743702784568,-500.0,0.00050958,120]
[357085002,1743702784599,-1760.21,0.00050958,120]
[357085003,1743702784630,-398.48965722,0.00050958,120]
[357085004,1743702784662,-500.0,0.00050958,120]
[357085005,1743702784692,-2980.91,0.00050958,120]
[357085006,1743702784720,-1579.38,0.00050958,120]
[357085007,1743702784749,-1116.73,0.00050958,120]
[357085008,1743702784777,-1693.21,0.00050958,120]
[357085009,1743702784806,-477.72385988,0.00050958,120]
[357085010,1743702784835,-500.0,0.00050958,120]
[357085011,1743702784864,-1211.63,0.00050958,120]
[357085012,1743702784896,-1853.76,0.00050958,120]
[357085013,1743702784925,-1747.91,0.00050958,120]
[357085014,1743702784956,-1699.65,0.00050958,120]
[357085015,1743702784988,-500.0,0.00050958,120]
[357085016,1743702785018,-1666.14,0.00050958,120]
[357085017,1743702785049,-919.01,0.00050958,120]
[357085018,1743702785077,-1084.23,0.00050958,120]
[357085019,1743702785113,-1746.34,0.00050958,120]
[357085020,1743702785144,-2182.37,0.00050958,120]
[357085021,1743702785173,-1996.93,0.00050958,120]
[357085022,1743702785204,-616.61,0.00050958,120]
[357085023,1743702785239,-500.0,0.00050981,120]
[357085024,1743702785272,-500.0,0.00050981,120]
[357085025,1743702785305,-500.0,0.00050981,120]
[357085026,1743702785340,-50000.0,0.00051,51]
[357085027,1743702785373,-500.0,0.00051,52]
[357085028,1743702785406,-1000000.0,0.00051,120]
[357085029,1743702785439,-1000000.0,0.00051,120]
[357085030,1743702785468,-1000.0,0.00051,120]
[357085031,1743702785498,-500.0,0.00051028,60]
[357085032,1743702785529,-1570.339496,0.00051232,120]
[357085033,1743702785559,-1746.393489,0.00051232,120]
[357085034,1743702785588,-668.08,0.00051232,120]
[357085035,1743702785619,-500.0,0.00051232,120]
[357085036,1743702785648,-500.0,0.00051232,120]
[357085037,1743702785676,-500.0,0.00051232,120]
[357085038,1743702785705,-500.0,0.00051232,120]
[357085039,1743702785736,-602.89,0.00051232,120]
[357085040,1743702785765,-500.0,0.00051232,120]
[357085041,1743702785798,-500.0,0.00051232,120]
[357085042,1743702785826,-500.0,0.00051232,120]
[357085043,1743702785854,-985.24,0.00051232,120]
[357085044,1743702785881,-500.0,0.00051232,120]
[357085045,1743702785910,-1580.79,0.00051232,120]
[357085046,1743702785939,-1670.9,0.00051232,120]
[357085047,1743702785966,-2179.85,0.00051232,120]
[357085048,1743702785997,-500.0,0.00051232,120]
[357085049,1743702786026,-1833.35,0.00051232,120]
[357085050,1743702786055,-1059.43,0.00051232,120]
[357085051,1743702786084,-398.24804658,0.00051232,120]
[357085052,1743702786112,-500.0,0.00051232,120]
[357085053,1743702786141,-615.12,0.00051232,120]
[357085054,1743702786170,-2116.98,0.00051232,120]
[357085055,1743702786197,-1664.7,0.00051232,120]
[357085056,1743702786226,-2371.69,0.00051232,120]
[357085057,1743702786255,-1951.25,0.00051232,120]
[357085058,1743702786288,-2172.01,0.00051232,120]
[357085059,1743702786317,-1677.78,0.00051232,120]
[357085060,1743702786346,-1206.58,0.00051232,120]
[357085061,1743702786375,-2569.15,0.00051232,120]
[357085062,1743702786405,-2095.81,0.00051232,120]
[357085063,1743702786436,-2095.76,0.00051232,120]
[357085064,1743702786465,-1739.7,0.00051232,120]
[357085065,1743702786496,-1687.07,0.00051232,120]
[357085066,1743702786525,-2265.06,0.00051232,120]
[357085067,1743702786554,-1685.91,0.00051232,120]
[357085068,1743702786584,-308.94833827,0.00051232,120]
[357085069,1743702786614,-500.0,0.00051232,120]
[357085070,1743702786643,-1903.06,0.00051232,120]
[357085071,1743702786671,-2009.82,0.00051232,120]
[357085072,1743702786700,-500.0,0.00051232,120]
[357085073,1743702786728,-2140.52,0.00051232,120]
[357085074,1743702786756,-771.9,0.00051232,120]
[357085075,1743702786785,-150.0,0.00051232,120]
[357085076,1743702786813,-1568.95,0.00051232,120]
[357085077,1743702786841,-500.0,0.00051232,120]
[357085078,1743702786870,-500.0,0.00051232,120]
[357085079,1743702786900,-998.19,0.00051232,120]
[357085080,1743702786929,-1519.77,0.00051232,120]
[357085081,1743702786958,-1817.99,0.00051232,120]
[357085082,1743702786988,-1674.65,0.00051232,120]
[357085083,1743702787018,-1554.9,0.00051232,120]
[357085084,1743702787047,-500.0,0.00051232,120]
[357085085,1743702787075,-1415.89,0.00051232,120]
[357085086,1743702787103,-500.0,0.00051232,120]
[357085087,1743702787130,-1535.52,0.00051232,120]
[357085088,1743702787158,-854.16,0.00051232,120]
[357085089,1743702787186,-2083.3,0.00051232,120]
[357085090,1743702787214,-1807.91,0.00051232,120]
[357085091,1743702787242,-500.0,0.00051232,120]
[357085092,1743702787270,-2155.15,0.00051232,120]
[357085093,1743702787298,-2101.8,0.00051232,120]
[357085094,1743702787325,-1912.76,0.00051232,120]
[357085095,1743702787354,-731.1,0.00051232,120]
[357085096,1743702787383,-500.0,0.00051232,120]
[357085097,1743702787411,-2855.85,0.00051232,120]
[357085098,1743702787439,-1917.44,0.00051232,120]
[357085099,1743702787685,-500.0,0.00051232,120]
[357085100,1743702787715,-976.29,0.00051232,120]
[357085101,1743702787744,-505.64,0.00051232,120]
[357085102,1743702787776,-1398.35,0.00051232,120]
[357085103,1743702787806,-1868.38,0.00051232,120]
[357085104,1743702787834,-500.0,0.00051232,120]
[357085105,1743702787862,-1848.74,0.00051232,120]
[357085106,1743702787890,-500.0,0.00051232,120]
[357085107,1743702787922,-1939.65,0.00051232,120]
[357085108,1743702787950,-500.0,0.00051232,120]
[357085109,1743702787978,-500.0,0.00051232,120]
[357085110,1743702788007,-527.11,0.00051232,120]
[357085111,1743702788036,-2473.74,0.00051232,120]
[357085112,1743702788064,-2090.69,0.00051232,120]
[357085113,1743702788092,-597.25,0.00051232,120]
[357085114,1743702788120,-1838.99,0.00051232,120]
[357085115,1743702788148,-2110.49,0.00051232,120]
[357085116,1743702788176,-2100.66,0.00051232,120]
[357085117,1743702788207,-778.23,0.00051232,120]
[357085118,1743702788236,-749.23,0.00051232,120]
[357085119,1743702788264,-500.0,0.00051232,120]
[357085120,1743702788292,-1588.68,0.00051232,120]
[357085121,1743702788320,-500.0,0.00051232,120]
[357085122,1743702788348,-574.96,0.00051232,120]
[357085123,1743702788376,-1992.38,0.00051232,120]
[357085124,1743702788404,-306.0262491,0.00051232,120]
[357085125,1743702788431,-795.48,0.00051232,120]
[357085126,1743702788458,-500.0,0.00051232,120]
[357085127,1743702788487,-1760.21,0.00051232,120]
[357085128,1743702788515,-500.0,0.00051232,120]
[357085129,1743702788541,-2980.91,0.00051232,120]
[357085130,1743702788568,-1579.38,0.00051232,120]
[357085131,1743702788594,-1116.73,0.00051232,120]
[357085132,1743702788621,-1693.21,0.00051232,120]
[357085133,1743702788648,-500.0,0.00051232,120]
[357085134,1743702788675,-1211.63,0.00051232,120]
[357085135,1743702788702,-1853.76,0.00051232,120]
[357085136,1743702788729,-1747.91,0.00051232,120]
[357085137,1743702788757,-1699.65,0.00051232,120]
[357085138,1743702788785,-500.0,0.00051232,120]
[357085139,1743702788811,-1666.14,0.00051232,120]
[357085140,1743702788838,-919.01,0.00051232,120]
[357085141,1743702788864,-1084.23,0.00051232,120]
[357085142,1743702788894,-1746.34,0.00051232,120]
[357085143,1743702788922,-2182.37,0.00051232,120]
[357085144,1743702788949,-1996.93,0.00051232,120]
[357085145,1743702788977,-616.61,0.00051232,120]
[357085146,1743702789006,-500.0,0.00051255,120]
[357085147,1743702789033,-2000.0,0.0005144,32]
[357085148,1743702789060,-500.0,0.00051491,60]
[357085149,1743702789089,-155863.0,0.000515,120]
[357085150,1743702789118,-1570.339496,0.00051506,120]
[357085151,1743702789146,-1746.393489,0.00051506,120]
[357085152,1743702789173,-668.08,0.00051506,120]
[357085153,1743702789200,-517.75389387,0.00051506,120]
[357085154,1743702789226,-500.0,0.00051506,120]
[357085155,1743702789253,-491.26093425,0.00051506,120]
[357085156,1743702789281,-500.0,0.00051506,120]
[357085157,1743702789308,-602.89,0.00051506,120]
[357085158,1743702789335,-500.0,0.00051506,120]
[357085159,1743702789362,-500.0,0.00051506,120]
[357085160,1743702789389,-500.0,0.00051506,120]
[357085161,1743702789418,-985.24,0.00051506,120]
[357085162,1743702789446,-500.0,0.00051506,120]
[357085163,1743702789474,-1580.79,0.00051506,120]
[357085164,1743702789502,-1670.9,0.00051506,120]
[357085165,1743702789530,-2179.85,0.00051506,120]
[357085166,1743702789558,-500.0,0.00051506,120]
[357085167,1743702789586,-1833.35,0.00051506,120]
[357085168,1743702789613,-1059.43,0.00051506,120]
[357085169,1743702789640,-500.0,0.00051506,120]
[357085170,1743702789669,-615.12,0.00051506,120]
[357085171,1743702789697,-2116.98,0.00051506,120]
[357085172,1743702789725,-1664.7,0.00051506,120]
[357085173,1743702789753,-2371.69,0.00051506,120]
[357085174,1743702789780,-1951.25,0.00051506,120]
[357085175,1743702789806,-2172.01,0.00051506,120]
[357085176,1743702789833,-1677.78,0.00051506,120]
[357085177,1743702789867,-1206.58,0.00051506,120]
[357085178,1743702789898,-2569.15,0.00051506,120]
[357085179,1743702789927,-2095.81,0.00051506,120]
[357085180,1743702789955,-2095.76,0.00051506,120]
[357085181,1743702789984,-1739.7,0.00051506,120]
[357085182,1743702790012,-1687.07,0.00051506,120]
[357085183,1743702790041,-2265.06,0.00051506,120]
[357085184,1743702790069,-1685.91,0.00051506,120]
[357085185,1743702790097,-500.0,0.00051506,120]
[357085186,1743702790127,-1903.06,0.00051506,120]
[357085187,1743702790156,-2009.82,0.00051506,120]
[357085188,1743702790184,-500.0,0.00051506,120]
[357085189,1743702790212,-2140.52,0.00051506,120]
[357085190,1743702790241,-771.9,0.00051506,120]
[357085191,1743702790269,-150.0,0.00051506,120]
[357085192,1743702790298,-1568.95,0.00051506,120]
[357085193,1743702790327,-500.0,0.00051506,120]
[357085194,1743702790357,-500.0,0.00051506,120]
[357085195,1743702790388,-998.19,0.00051506,120]
[357085196,1743702790417,-1519.77,0.00051506,120]
[357085197,1743702790445,-1817.99,0.00051506,120]
[357085198,1743702790473,-1674.65,0.00051506,120]
[357085199,1743702790653,-1554.9,0.00051506,120]
[357085200,1743702790686,-500.0,0.00051506,120]
[357085201,1743702790716,-1415.89,0.00051506,120]
[357085202,1743702790747,-500.0,0.00051506,120]
[357085203,1743702790776,-1535.52,0.00051506,120]
[357085204,1743702790806,-854.16,0.00051506,120]
[357085205,1743702790835,-2083.3,0.00051506,120]
[357085206,1743702790864,-1807.91,0.00051506,120]
[357085207,1743702790893,-500.0,0.00051506,120]
[357085208,1743702790924,-2155.15,0.00051506,120]
[357085209,1743702790953,-2101.8,0.00051506,120]
[357085210,1743702790981,-1912.76,0.00051506,120]
[357085211,1743702791014,-731.1,0.00051506,120]
[357085212,1743702791045,-483.45788502,0.00051506,120]
[357085213,1743702791075,-2855.85,0.00051506,120]
[357085214,1743702791104,-1917.44,0.00051506,120]
[357085215,1743702791136,-608.23667976,0.00051506,120]
[357085216,1743702791168,-976.29,0.00051506,120]
[357085217,1743702791201,-505.64,0.00051506,120]
[357085218,1743702791231,-1398.35,0.00051506,120]
[357085219,1743702791269,-1868.38,0.00051506,120]
[357085220,1743702791298,-484.62321912,0.00051506,120]
[357085221,1743702791328,-1848.74,0.00051506,120]
[357085222,1743702791358,-500.0,0.00051506,120]
[357085223,1743702791386,-1939.65,0.00051506,120]
[357085224,1743702791415,-500.0,0.00051506,120]
[357085225,1743702791444,-500.0,0.00051506,120]
[357085226,1743702791474,-527.11,0.00051506,120]
[357085227,1743702791506,-2473.74,0.00051506,120]
[357085228,1743702791535,-2090.69,0.00051506,120]
[357085229,1743702791564,-597.25,0.00051506,120]
[357085230,1743702791593,-1838.99,0.00051506,120]
[357085231,1743702791621,-2110.49,0.00051506,120]
[357085232,1743702791650,-2100.66,0.00051506,120]
[357085233,1743702791680,-778.23,0.00051506,120]
[357085234,1743702791708,-749.23,0.00051506,120]
[357085235,1743702791739,-500.0,0.00051506,120]
[357085236,1743702791769,-1588.68,0.00051506,120]
[357085237,1743702791797,-500.0,0.00051506,120]
[357085238,1743702791825,-1992.38,0.00051506,120]
[357085239,1743702791854,-574.96,0.00051506,120]
[357085240,1743702791881,-795.48,0.00051506,120]
[357085241,1743702791911,-500.0,0.00051506,120]
[357085242,1743702791941,-1760.21,0.00051506,120]
[357085243,1743702791970,-500.0,0.00051506,120]
[357085244,1743702792003,-2980.91,0.00051506,120]
[357085245,1743702792031,-1579.38,0.00051506,120]
[357085246,1743702792058,-1116.73,0.00051506,120]
[357085247,1743702792087,-1693.21,0.00051506,120]
[357085248,1743702792113,-500.0,0.00051506,120]
[357085249,1743702792141,-1211.63,0.00051506,120]
[357085250,1743702792168,-1853.76,0.00051506,120]
[357085251,1743702792194,-1747.91,0.00051506,120]
[357085252,1743702792221,-1699.65,0.00051506,120]
[357085253,1743702792250,-500.0,0.00051506,120]
[357085254,1743702792278,-1666.14,0.00051506,120]
[357085255,1743702792305,-919.01,0.00051506,120]
[357085256,1743702792332,-1084.23,0.00051506,120]
[357085257,1743702792360,-1746.34,0.00051506,120]
[357085258,1743702792388,-2182.37,0.00051506,120]
[357085259,1743702792416,-1996.93,0.00051506,120]
[357085260,1743702792444,-616.61,0.00051506,120]
[357085261,1743702792472,-500.0,0.00051529,120]
[357085262,1743702792502,-500.0,0.00051529,120]
[357085263,1743702792530,-500.0,0.00051664,60]
[357085264,1743702792558,-1570.339496,0.0005178,120]
[357085265,1743702792584,-1746.393489,0.0005178,120]
[357085266,1743702792611,-668.08,0.0005178,120]
[357085267,1743702792637,-500.0,0.0005178,120]
[357085268,1743702792664,-500.0,0.0005178,120]
[357085269,1743702792690,-602.89,0.0005178,120]
[357085270,1743702792716,-500.0,0.0005178,120]
[357085271,1743702792742,-500.0,0.0005178,120]
[357085272,1743702792768,-313.92509667,0.0005178,120]
[357085273,1743702792795,-985.24,0.0005178,120]
[357085274,1743702792822,-500.0,0.0005178,120]
[357085275,1743702792849,-1580.79,0.0005178,120]
[357085276,1743702792877,-1670.9,0.0005178,120]
[357085277,1743702792903,-2179.85,0.0005178,120]
[357085278,1743702792931,-500.0,0.0005178,120]
[357085279,1743702792959,-1833.35,0.0005178,120]
[357085280,1743702792988,-1059.43,0.0005178,120]
[357085281,1743702793015,-500.0,0.0005178,120]
[357085282,1743702793042,-615.12,0.0005178,120]
[357085283,1743702793069,-2116.98,0.0005178,120]
[357085284,1743702793096,-1664.7,0.0005178,120]
[357085285,1743702793124,-2371.69,0.0005178,120]
[357085286,1743702793151,-1951.25,0.0005178,120]
[357085287,1743702793177,-2172.01,0.0005178,120]
[357085288,1743702793205,-1677.78,0.0005178,120]
[357085289,1743702793232,-1206.58,0.0005178,120]
[357085290,1743702793260,-2569.15,0.0005178,120]
[357085291,1743702793288,-2095.81,0.0005178,120]
[357085292,1743702793315,-2095.76,0.0005178,120]
[357085293,1743702793343,-1739.7,0.0005178,120]
[357085294,1743702793370,-1687.07,0.0005178,120]
[357085295,1743702793398,-2265.06,0.0005178,120]
[357085296,1743702793582,-1685.91,0.0005178,120]
[357085297,1743702793614,-500.0,0.0005178,120]
[357085298,1743702793642,-1903.06,0.0005178,120]
[357085299,1743702793670,-2009.82,0.0005178,120]
[357085300,1743702793698,-500.0,0.0005178,120]
[357085301,1743702793726,-2140.52,0.0005178,120]
[357085302,1743702793755,-771.9,0.0005178,120]
[357085303,1743702793784,-150.0,0.0005178,120]
[357085304,1743702793813,-1568.95,0.0005178,120]
[357085305,1743702793841,-500.0,0.0005178,120]
[357085306,1743702793870,-500.0,0.0005178,120]
[357085307,1743702793901,-998.19,0.0005178,120]
[357085308,1743702793932,-1519.77,0.0005178,120]
[357085309,1743702793961,-1817.99,0.0005178,120]
[357085310,1743702793990,-1674.65,0.0005178,120]
[357085311,1743702794019,-1554.9,0.0005178,120]
[357085312,1743702794048,-500.0,0.0005178,120]
[357085313,1743702794077,-1415.89,0.0005178,120]
[357085314,1743702794104,-500.0,0.0005178,120]
[357085315,1743702794132,-1535.52,0.0005178,120]
[357085316,1743702794160,-854.16,0.0005178,120]
[357085317,1743702794188,-2083.3,0.0005178,120]
[357085318,1743702794216,-1807.91,0.0005178,120]
[357085319,1743702794244,-500.0,0.0005178,120]
[357085320,1743702794274,-2155.15,0.0005178,120]
[357085321,1743702794302,-2101.8,0.0005178,120]
[357085322,1743702794330,-1912.76,0.0005178,120]
[357085323,1743702794359,-731.1,0.0005178,120]
[357085324,1743702794388,-2855.85,0.0005178,120]
[357085325,1743702794417,-1917.44,0.0005178,120]
[357085326,1743702794446,-976.29,0.0005178,120]
[357085327,1743702794475,-505.64,0.0005178,120]
[357085328,1743702794505,-1398.35,0.0005178,120]
[357085329,1743702794536,-1868.38,0.0005178,120]
[357085330,1743702794564,-1848.74,0.0005178,120]
[357085331,1743702794592,-500.0,0.0005178,120]
[357085332,1743702794620,-1939.65,0.0005178,120]
[357085333,1743702794648,-500.0,0.0005178,120]
[357085334,1743702794676,-500.0,0.0005178,120]
[357085335,1743702794704,-527.11,0.0005178,120]
[357085336,1743702794733,-2473.74,0.0005178,120]
[357085337,1743702794762,-2090.69,0.0005178,120]
[357085338,1743702794791,-597.25,0.0005178,120]
[357085339,1743702794817,-1838.99,0.0005178,120]
[357085340,1743702794845,-2110.49,0.0005178,120]
[357085341,1743702794872,-2100.66,0.0005178,120]
[357085342,1743702794903,-778.23,0.0005178,120]
[357085343,1743702794936,-749.23,0.0005178,120]
[357085344,1743702794988,-500.0,0.0005178,120]
[357085345,1743702795038,-1588.68,0.0005178,120]
[357085346,1743702795092,-500.0,0.0005178,120]
[357085347,1743702795144,-574.96,0.0005178,120]
[357085348,1743702795189,-1992.38,0.0005178,120]